bitfinex/quotes_ETHUSD_20241009
["timestamp","ask_amount","ask_price","bid_price","bid_amount"]
[1728450211144,2.19115466,2451.7,2451.2,5.81249935]
[1728450211458,2.19115466,2451.7,2451.2,4.07952]
[1728450211975,5.14169261,2451.6,2451.0,4.07988]
[1728450212146,5.14169261,2451.6,2451.0,5.21217663]
[1728450212147,0.04918593,2451.5,2451.0,5.21217663]
[1728450212577,6.22129271,2451.6,2451.0,5.21214663]
[1728450212878,0.04920441,2451.5,2451.0,9.29200663]
[1728450213080,0.04920441,2451.5,2451.0,5.21214663]
[1728450213284,3.0,2451.3,2450.8,4.08023]
[1728450213578,0.04892698,2451.2,2451.1,4.07964]
[1728450213780,2.14230271,2451.5,2451.1,2.62541935]
[1728450213943,0.04908388,2451.4,2451.0,4.07996]
[1728450214448,6.27072659,2451.4,2450.9,0.7648]
[1728450214648,6.27072659,2451.4,2450.8,4.08023]
[1728450214649,2.19138659,2451.4,2450.8,8.16046]
[1728450216271,2.19138659,2451.4,2450.9,4.08011]
[1728450216484,2.19138659,2451.4,2450.9,5.55396494]
[1728450216991,4.07961,2451.3,2450.6,4.08051]
[1728450217156,4.07961,2451.3,2450.7,4.08044]
[1728450217157,5.14230271,2451.2,2450.7,4.08044]
[1728450217353,5.19089256,2451.2,2450.7,4.08044]
[1728450218655,5.19089256,2451.2,2450.6,4.84761]
[1728450219008,5.19089256,2451.2,2450.6,5.14665694]
[1728450219296,3.04896503,2451.2,2450.6,5.14665694]
[1728450219462,5.19089256,2451.2,2450.6,5.14665694]
[1728450219786,4.07981,2451.1,2450.6,4.08051]
[1728450219988,0.04826004,2451.0,2450.6,4.08051]
[1728450220308,0.24771334,2451.0,2450.4,4.08088]
[1728450220476,0.24771334,2451.0,2450.5,4.488878]
[1728450220976,0.24771334,2451.0,2450.5,0.408088]
[1728450221969,0.24771334,2451.0,2450.4,4.08085]
[1728450222200,0.24771334,2451.0,2450.4,5.81382935]
[1728450222509,0.24771334,2451.0,2450.4,9.89468935]
[1728450222674,0.24771334,2451.0,2450.5,4.08075]
[1728450222876,0.24771334,2451.0,2450.6,4.08054]
[1728450223174,0.24771334,2451.0,2450.6,5.81351935]
[1728450224803,0.24771334,2451.0,2450.7,4.08042]
[1728450234309,0.24771334,2451.0,2450.5,4.08075]
[1728450234310,3.24771334,2451.0,2450.5,4.08075]
[1728450234513,3.24771334,2451.0,2450.5,8.16143]
[1728450236329,0.24771334,2451.0,2450.6,4.08063]
[1728450237230,0.24771334,2451.0,2450.6,6.80303829]
[1728450238013,0.24771334,2451.0,2450.6,7.60923829]
[1728450239745,0.24771334,2451.0,2450.7,4.08046]
[1728450240242,0.04826004,2451.0,2450.7,4.08046]
[1728450240458,3.0,2451.2,2450.7,4.08046]
[1728450240756,0.04808686,2450.9,2450.7,4.08046]
[1728450240955,0.20668535,2451.1,2450.7,9.32965483]
[1728450241165,0.04801923,2450.8,2450.7,9.32965483]
[1728450241363,0.20668535,2451.1,2450.7,9.32965483]
[1728450241659,0.20668535,2451.1,2450.7,5.24930483]
[1728450241856,0.04820426,2451.0,2450.7,5.24930483]
[1728450242378,0.04820426,2451.0,2450.8,4.85902842]
[1728450242534,0.04820426,2451.0,2450.9,4.08013]
[1728450242720,0.04820426,2451.0,2450.9,4.90113]
[1728450243964,7.43,2451.7,2451.2,4.07948]
[1728450244123,0.2033374,2451.8,2451.2,9.89196935]
[1728450244518,0.2033374,2451.8,2451.2,5.81245935]
[1728450245019,3.2033374,2451.8,2451.2,5.81245935]
[1728450245215,0.04890469,2451.7,2451.2,5.81245935]
[1728450245525,0.04890469,2451.7,2451.2,7.56239129]
[1728450245771,0.04890469,2451.7,2451.3,4.07946]
[1728450246075,3.2033374,2451.8,2451.2,7.56239129]
[1728450246373,0.04895555,2451.6,2451.3,4.07939]
[1728450246671,0.04886309,2451.5,2451.2,7.56239129]
[1728450246816,0.04886309,2451.5,2451.3,0.75623913]
[1728450247020,3.2033374,2451.8,2451.3,0.75623913]
[1728450247263,0.04893565,2451.7,2451.3,0.75623913]
[1728450247573,3.2033374,2451.8,2451.3,0.75623913]
[1728450247882,4.07914,2451.5,2450.8,4.85905842]
[1728450248024,3.04893565,2451.7,2450.8,7.39503777]
[1728450248224,4.07898,2451.6,2451.0,4.07995]
[1728450248528,0.04879473,2451.5,2451.0,4.07995]
[1728450249124,0.04879473,2451.5,2450.8,7.39499777]
[1728450249324,4.12792473,2451.5,2450.9,0.73949978]
[1728450249954,4.12792473,2451.5,2450.9,4.81961978]
[1728450250934,4.12792473,2451.5,2450.9,4.08012]
[1728450251852,0.04879473,2451.5,2450.9,4.08012]
[1728450252054,0.04879473,2451.5,2451.0,4.07991]
[1728450253080,0.04879473,2451.5,2450.8,6.61614935]
[1728450253297,4.12793473,2451.5,2450.9,4.08012]
[1728450253583,4.12793473,2451.5,2450.9,5.14974694]
[1728450255495,4.07947,2451.3,2450.6,4.85963]
[1728450255645,4.07947,2451.3,2450.7,4.08045]
[1728450255852,0.04857304,2451.2,2450.7,4.08045]
[1728450256275,3.91152757,2451.3,2450.7,4.08045]
[1728450256477,0.04695394,2451.2,2450.7,5.81342935]
[1728450257593,0.04695394,2451.2,2450.8,4.08025]
[1728450257958,9.21837974,2451.4,2450.8,4.08025]
[1728450258448,0.04702185,2451.3,2450.8,4.08025]
[1728450259954,2.18598159,2451.3,2450.8,4.08025]
[1728450260154,2.18717216,2451.3,2450.8,4.08025]
[1728450260582,0.04702185,2451.3,2450.6,4.08053]
[1728450260891,5.14015031,2451.2,2450.7,4.08043]
[1728450261099,3.0,2451.2,2450.7,4.08043]
[1728450261413,0.04683778,2451.1,2450.6,5.81347935]
[1728450261689,5.14015031,2451.3,2450.8,4.08028]
[1728450261991,0.04674529,2451.0,2450.8,4.08028]
[1728450262197,5.14015031,2451.3,2450.8,4.08028]
[1728450262409,0.04665278,2450.9,2450.8,4.08028]
[1728450262568,5.14015031,2451.3,2450.8,4.08028]
[1728450262768,0.04665278,2450.9,2450.8,4.08028]
[1728450262978,3.0,2451.3,2450.8,5.06965594]
[1728450263302,2.14015031,2451.5,2451.0,5.81287935]
[1728450263517,6.64692037,2451.8,2451.0,5.81287935]
[1728450263518,0.04781124,2451.2,2451.0,5.81287935]
[1728450263690,6.21913031,2451.6,2451.0,5.81287935]
[1728450263898,0.04777324,2451.1,2451.0,5.81287935]
[1728450264214,2.14015031,2451.5,2451.0,5.15063594]
[1728450264365,0.04777324,2451.1,2451.0,5.15063594]
[1728450264563,5.14015031,2451.5,2451.0,5.15063594]
[1728450264794,0.04777324,2451.1,2451.0,5.15063594]
[1728450264995,3.0,2451.5,2451.0,5.15063594]
[1728450265307,5.13998498,2451.5,2451.0,5.15063594]
[1728450265496,0.04805056,2451.4,2451.1,0.51506359]
[1728450267204,0.04805056,2451.4,2451.1,4.59474359]
[1728450267360,0.04805056,2451.4,2451.1,5.38564359]
[1728450267565,9.21880498,2451.7,2451.1,5.38564359]
[1728450267764,0.04630988,2451.3,2451.2,1.22692089]
[1728450267965,9.21880498,2451.7,2451.2,1.22692089]
[1728450267966,5.13998498,2451.7,2451.2,7.03951024]
[1728450268176,0.04630988,2451.3,2451.2,7.03951024]
[1728450268393,3.0,2451.7,2451.2,7.03951024]
[1728450268706,3.0,2451.7,2451.3,0.83454738]
[1728450274343,3.0,2451.7,2451.1,0.7909]
[1728450274632,5.13953257,2451.7,2451.1,0.7909]
[1728450274838,2.13953257,2451.6,2451.1,0.7909]
[1728450274988,2.13944273,2451.6,2451.1,0.7909]
[1728450275544,0.04652571,2451.5,2451.1,0.7909]
[1728450276217,3.04652571,2451.5,2451.1,0.7909]
[1728450280138,7.12579571,2451.5,2450.8,4.08022]
[1728450280341,3.0,2451.3,2450.8,4.08022]
[1728450280540,3.0,2451.3,2450.8,5.14892594]
[1728450280748,0.04497707,2451.2,2450.8,5.14892594]
[1728450281248,3.0,2451.3,2450.8,5.14892594]
[1728450281454,0.04488462,2451.1,2450.8,4.08022]
[1728450281779,0.04479216,2451.0,2450.8,4.08022]
[1728450282244,3.0,2451.3,2450.8,4.08022]
[1728450282707,0.04497707,2451.2,2450.8,4.08022]
[1728450283235,7.07948,2451.3,2450.8,4.08022]
[1728450283540,0.04497707,2451.2,2450.7,0.7933]
[1728450284260,0.24441482,2451.2,2450.7,4.87376]
[1728450284405,0.24441482,2451.2,2450.7,5.94249394]
[1728450290586,0.04497707,2451.2,2450.7,5.94249394]
[1728450290906,0.04497707,2451.2,2450.8,4.08029]
[1728450291200,3.0,2451.3,2450.8,11.06902968]
[1728450291356,0.04488796,2451.1,2450.8,11.06902968]
[1728450291555,0.04498041,2451.2,2450.8,11.06902968]
[1728450291751,0.04479551,2451.0,2450.8,11.06902968]
[1728450291955,3.0,2451.3,2450.8,6.98873968]
[1728450292159,5.1406406,2451.5,2451.1,0.7806]
[1728450292769,2.1406406,2451.4,2451.1,0.7806]
[1728450293170,9.2197706,2451.5,2451.1,0.7806]
[1728450293409,2.1406406,2451.4,2451.1,0.7806]
[1728450294610,2.1406406,2451.4,2450.9,5.61231397]
[1728450295068,2.14105253,2451.4,2450.9,5.61231397]
[1728450296618,6.22038253,2451.4,2450.9,1.53230397]
[1728450296893,3.0,2451.3,2450.9,0.7541]
[1728450297865,5.14105253,2451.4,2450.9,0.7541]
[1728450298405,2.14105253,2451.4,2450.9,0.7541]
[1728450298716,3.0,2451.3,2450.9,0.7541]
[1728450299005,2.14105253,2451.4,2450.9,5.49090594]
[1728450299586,9.22029253,2451.5,2450.9,5.49090594]
[1728450299816,2.14105253,2451.4,2450.9,5.49090594]
[1728450300655,2.34373534,2451.6,2451.3,0.7811]
[1728450301292,0.20268281,2451.6,2451.3,0.7811]
[1728450303168,3.0,2451.5,2451.1,0.8284]
[1728450303518,3.0,2451.5,2451.1,4.90817]
[1728450303668,3.0,2451.5,2451.1,1.96616953]
[1728450304780,3.0,2451.5,2451.1,6.04596953]
[1728450304991,5.14077559,2451.8,2451.4,1.73297935]
[1728450305561,3.0,2451.8,2451.4,1.73297935]
[1728450305775,2.14077559,2451.9,2451.5,0.7966]
[1728450305776,9.21927559,2451.9,2451.5,0.7966]
[1728450306787,3.0,2451.9,2451.5,0.7966]
[1728450307111,3.20065283,2451.9,2451.5,0.7966]
[1728450307308,2.26170899,2452.0,2451.5,5.53652693]
[1728450307707,2.26170899,2452.0,2451.6,1.73297935]
[1728450308237,3.0,2451.9,2451.5,1.45748693]
[1728450310638,3.0,2451.9,2451.5,5.53654693]
[1728450310937,0.1209334,2452.0,2451.6,0.5710434]
[1728450311135,0.1209334,2452.0,2451.5,1.45748693]
[1728450311506,0.1209334,2452.0,2451.5,5.53656693]
[1728450311958,0.1209334,2452.0,2451.5,1.45748693]
[1728450313347,0.1209334,2452.0,2451.5,5.53651693]
[1728450313633,0.1209334,2452.0,2451.7,0.7891]
[1728450315802,0.1209334,2452.0,2451.7,2.52207935]
[1728450316034,0.1209334,2452.0,2451.7,3.24827098]
[1728450318350,0.1209334,2452.0,2451.8,0.7601]
[1728450320101,0.04102617,2451.9,2451.8,0.7601]
[1728450332155,0.10444086,2451.9,2451.8,0.7601]
[1728450332925,0.10444086,2451.9,2451.5,0.8087]
[1728450333152,0.10444086,2451.9,2451.5,3.03047135]
[1728450337642,4.0789,2451.7,2451.3,0.811]
[1728450337841,0.10444086,2451.9,2451.3,0.811]
[1728450338041,0.10100574,2451.6,2451.4,1.73297935]
[1728450338291,3.0,2451.7,2451.4,1.73297935]
[1728450338748,0.10088176,2451.6,2451.4,1.73297935]
[1728450338948,0.10088176,2451.6,2451.3,0.811]
[1728450340561,0.10088176,2451.6,2451.1,2.56417935]
[1728450340766,0.10088176,2451.6,2451.1,3.22858328]
[1728450341349,4.07924,2451.5,2450.9,0.8194]
[1728450341555,4.17652412,2451.5,2450.9,2.55237935]
[1728450342994,4.17652412,2451.5,2450.9,6.63250935]
[1728450343189,4.07931,2451.4,2450.9,2.55237935]
[1728450343390,4.1763291,2451.4,2450.9,2.55237935]
[1728450344093,0.0970191,2451.4,2450.9,6.63236935]
[1728450344390,3.0,2451.5,2450.9,7.70362229]
[1728450344590,0.09702592,2451.3,2450.9,6.63236935]
[1728450344794,7.07915,2451.5,2450.9,6.63236935]
[1728450344992,0.096912,2451.2,2450.9,6.63236935]
[1728450345194,7.07915,2451.5,2450.9,6.63236935]
[1728450345377,0.30378892,2451.1,2450.9,6.63236935]
[1728450345583,0.20690879,2451.1,2450.9,7.70362229]
[1728450345777,0.09676619,2451.0,2450.9,7.70362229]
[1728450345981,0.09676619,2451.0,2450.9,3.62363229]
[1728450346697,0.09676619,2451.0,2450.9,7.70376229]
[1728450349259,3.0,2451.5,2451.0,4.0799]
[1728450349460,3.0,2451.5,2451.1,1.73297935]
[1728450349675,3.0,2451.5,2451.2,0.7663]
[1728450350398,0.09699955,2451.4,2451.2,0.7663]
[1728450351783,3.0,2451.7,2451.2,0.7663]
[1728450352010,0.09701076,2451.3,2451.2,4.84593]
[1728450352172,4.1992534,2452.0,2451.2,4.84593]
[1728450352173,3.0,2451.9,2451.3,4.07935]
[1728450352373,6.33828857,2452.0,2451.2,7.47148835]
[1728450352374,4.1992534,2452.0,2451.4,5.81221935]
[1728450352791,10.41671857,2452.0,2451.4,5.81221935]
[1728450353108,4.1992534,2452.0,2451.4,5.81221935]
[1728450353265,10.41670857,2452.0,2451.4,5.81221935]
[1728450353608,3.0,2451.9,2451.4,5.81221935]
[1728450353823,7.07849,2451.9,2451.4,5.81221935]
[1728450354967,7.07849,2451.9,2451.4,1.73297935]
[1728450356968,3.0,2451.9,2451.4,1.73297935]
[1728450358802,3.0,2451.9,2451.5,0.8058]
[1728450360005,7.07847,2451.9,2451.5,0.8058]
[1728450360583,4.07864,2451.8,2451.5,0.8058]
[1728450360798,3.0,2451.7,2451.5,0.8058]
[1728450361179,3.0,2451.9,2451.5,0.8058]
[1728450361809,7.07849,2451.9,2451.5,0.8058]
[1728450362389,3.0,2451.9,2451.5,4.88483]
[1728450362606,0.1209334,2452.0,2451.5,5.54661094]
[1728450362915,0.1209334,2452.0,2451.5,1.46758094]
[1728450363114,0.1209334,2452.0,2451.6,5.81191935]
[1728450364187,0.1209334,2452.0,2451.6,1.73297935]
[1728450365118,3.0,2451.9,2451.6,1.73297935]
[1728450365324,3.09783579,2451.9,2451.6,1.73297935]
[1728450366022,0.09783579,2451.9,2451.7,0.8171]
[1728450368196,3.09783579,2451.9,2451.7,0.8171]
[1728450368598,0.09783579,2451.9,2451.7,0.8171]
[1728450372928,0.09783579,2451.9,2451.8,1.73297935]
[1728450375896,0.09783579,2451.9,2451.8,5.81160935]
[1728450376096,0.09783579,2451.9,2451.8,6.88236229]
[1728450376297,0.09783579,2451.9,2451.8,7.70116229]
[1728450378016,0.09783579,2451.9,2451.8,3.62253229]
[1728450378216,0.09783579,2451.9,2451.8,7.70116229]
[1728450384958,0.09783579,2451.9,2451.8,5.96818294]
[1728450385167,0.09783579,2451.9,2451.8,7.70116229]
[1728450385826,0.09783579,2451.9,2451.8,3.62253229]
[1728450386954,0.09783579,2451.9,2451.8,7.70116229]
[1728450389449,0.09783579,2451.9,2451.8,3.62253229]
[1728450390968,0.09783579,2451.9,2451.8,7.70116229]
[1728450393629,0.09783579,2451.9,2451.6,0.7715]
[1728450393833,0.09783579,2451.9,2451.6,4.8504]
[1728450394091,0.09783579,2451.9,2451.6,6.58337935]
[1728450394978,0.09783579,2451.9,2451.6,2.50447935]
[1728450401091,0.09783579,2451.9,2451.5,4.07907]
[1728450402494,3.09783579,2451.9,2451.3,4.07937]
[1728450402649,4.07863,2451.8,2451.1,4.89713]
[1728450402973,3.0,2451.7,2451.2,4.07962]
[1728450403285,0.08479722,2451.6,2451.2,4.07962]
[1728450404976,0.08479722,2451.6,2451.1,6.63004935]
[1728450405381,0.08479722,2451.6,2451.1,10.70973935]
[1728450406300,3.0,2451.5,2451.0,4.07992]
[1728450406461,3.08472154,2451.5,2451.0,4.07992]
[1728450406672,0.08472154,2451.5,2451.3,1.73297935]
[1728450406893,3.0,2451.7,2451.3,1.73297935]
[1728450407162,3.0,2451.9,2451.3,5.81241935]
[1728450407477,0.08496451,2451.8,2451.3,5.81241935]
[1728450410828,0.08496451,2451.8,2451.2,4.86342]
[1728450410999,3.0,2451.7,2451.2,6.59629935]
[1728450411195,0.08496451,2451.8,2451.4,1.73297935]
[1728450411508,7.07847,2451.9,2451.4,1.73297935]
[1728450411834,0.08476801,2451.7,2451.4,1.73297935]
[1728450411996,0.08485775,2451.8,2451.4,1.73297935]
[1728450412317,0.08485775,2451.8,2451.4,5.81225935]
[1728450413979,0.08485775,2451.8,2451.4,1.73297935]
[1728450415807,0.08485775,2451.8,2451.2,4.86329]
[1728450416011,0.08485775,2451.8,2451.3,1.73297935]
[1728450417098,0.08485775,2451.8,2451.3,5.81243935]
[1728450420386,0.08485775,2451.8,2451.4,4.07924]
[1728450420609,0.08485775,2451.8,2451.5,0.809]
[1728450420827,0.08485775,2451.8,2451.3,1.73297935]
[1728450421127,4.07906,2451.6,2451.0,4.86508]
[1728450421429,4.07906,2451.6,2451.0,0.7852]
[1728450421624,7.15914833,2451.5,2450.9,5.81309935]
[1728450422124,4.0793,2451.4,2450.8,4.83988]
[1728450422325,4.0793,2451.4,2450.8,0.7596]
[1728450422484,3.07963961,2451.3,2450.8,0.7596]
[1728450422827,3.0,2451.1,2450.7,1.73297935]
[1728450423202,0.07934512,2451.0,2450.7,1.73297935]
[1728450426155,0.07934512,2451.0,2450.4,4.83899]
[1728450426363,4.08014,2450.9,2450.2,8.16234]
[1728450426663,4.08014,2450.9,2450.3,6.70613335]
[1728450426822,0.07918754,2450.8,2450.3,6.70613335]
[1728450427366,0.07918754,2450.8,2450.4,4.08096]
[1728450427659,0.07918754,2450.8,2450.5,1.73297935]
[1728450427863,0.07904191,2450.7,2450.5,1.73297935]
[1728450428065,4.0801,2451.0,2450.5,1.73297935]
[1728450428241,0.07895209,2450.6,2450.5,1.73297935]
[1728450428638,4.07997,2451.0,2450.5,1.73297935]
[1728450429039,0.07922153,2450.9,2450.5,1.73297935]
[1728450434053,4.15939153,2450.9,2450.5,1.73297935]
[1728450434288,4.0803,2450.8,2450.5,1.73297935]
[1728450434601,4.15929422,2450.8,2450.5,1.73297935]
[1728450435087,0.07899422,2450.8,2450.3,5.81408935]
[1728450435410,4.07997,2451.0,2450.3,5.81408935]
[1728450435689,0.07904743,2450.7,2450.3,5.81408935]
[1728450435897,4.07997,2451.0,2450.3,6.87916629]
[1728450436050,0.07896779,2450.9,2450.3,5.81408935]
[1728450436246,0.07865957,2450.6,2450.3,5.81408935]
[1728450436481,4.08014,2450.9,2450.3,5.81408935]
[1728450436780,0.07886778,2450.5,2450.3,1.73297935]
[1728450436979,3.0,2450.8,2450.3,1.73297935]
[1728450437180,0.07877795,2450.4,2450.3,5.81409935]
[1728450437484,3.0,2450.9,2450.3,6.87917729]
[1728450437669,0.07877795,2450.4,2450.3,5.81409935]
[1728450437988,3.0,2450.9,2450.3,5.81409935]
[1728450438185,7.08015,2450.9,2450.3,5.81409935]
[1728450438490,3.0,2450.9,2450.3,5.81409935]
[1728450438648,7.08019,2450.9,2450.3,5.81409935]
[1728450438847,0.07912084,2450.8,2450.3,5.81409935]
[1728450439272,0.07912084,2450.8,2450.3,1.73297935]
[1728450439273,4.15945084,2450.8,2450.3,1.73297935]
[1728450442101,0.07912084,2450.8,2450.3,5.81405935]
[1728450442345,0.07912084,2450.8,2450.4,4.08095]
[1728450442960,0.07912084,2450.8,2450.5,6.56766935]
[1728450443101,3.0,2451.0,2450.5,6.56766935]
[1728450443444,3.0,2451.1,2450.7,1.73297935]
[1728450444786,7.43,2451.3,2450.8,0.8214]
[1728450444924,4.07948,2451.3,2450.8,0.8214]
[1728450445756,4.28785679,2451.4,2450.8,0.8214]
[1728450446074,4.07982,2451.1,2450.7,1.73297935]
[1728450446463,3.0,2451.1,2450.7,1.73297935]
[1728450450284,7.07981,2451.1,2450.7,1.73297935]
[1728450450693,7.07981,2451.1,2450.6,0.753]
[1728450452309,3.0,2450.0,2449.3,0.41922356]
[1728450452522,3.0,2450.0,2448.7,0.7722]
[1728450452523,3.0,2449.4,2448.7,0.7722]
[1728450452853,8.3802,2450.3,2448.7,0.7722]
[1728450452854,3.0,2449.2,2448.7,0.7722]
[1728450452996,3.67744791,2449.2,2448.7,0.7722]
[1728450453758,3.0,2449.2,2448.7,0.7722]
[1728450454277,7.08263,2449.4,2448.7,1.257832]
[1728450455377,0.07690039,2449.3,2448.7,1.257832]
[1728450455663,3.0,2449.2,2448.7,1.257832]
[1728450455866,0.07672049,2449.1,2448.7,1.257832]
[1728450457490,4.15996049,2449.1,2448.7,1.257832]
[1728450458310,4.15996049,2449.1,2448.7,4.52339963]
[1728450458311,0.07672049,2449.1,2448.7,4.52339963]
[1728450461710,7.08304,2449.2,2448.7,4.52339963]
[1728450461912,0.07368027,2449.0,2448.7,4.52339963]
[1728450462112,7.08304,2449.2,2448.7,4.52339963]
[1728450462450,0.07359029,2448.9,2448.7,4.52339963]
[1728450462586,7.08304,2449.2,2448.7,5.38414059]
[1728450462781,0.07350031,2448.8,2448.7,5.38414059]
[1728450462999,7.08304,2449.2,2448.7,5.38414059]
[1728450463403,0.07377024,2449.1,2448.7,5.38414059]
[1728450464474,4.15692024,2449.1,2448.7,5.38414059]
[1728450464676,4.15692024,2449.1,2448.7,0.7722]
[1728450465520,0.07377024,2449.1,2448.7,0.7722]
[1728450465676,4.15693024,2449.1,2448.7,0.7722]
[1728450466476,4.08374,2448.8,2448.1,35.0]
[1728450466716,4.08441,2448.4,2448.0,0.7771]
[1728450466885,7.0845,2448.3,2448.0,0.7771]
[1728450467197,3.07301488,2448.3,2448.0,0.7771]
[1728450467403,4.08465,2448.2,2448.0,0.7771]
[1728450467790,0.07277524,2448.1,2448.0,0.7771]
[1728450468173,3.0,2448.3,2448.0,0.7771]
[1728450468403,0.07277524,2448.1,2448.0,0.7771]
[1728450468598,7.08461,2448.3,2448.0,0.7771]
[1728450468804,0.07275314,2448.1,2448.0,0.7771]
[1728450469004,7.08461,2448.3,2448.0,0.7771]
[1728450469199,0.07030742,2448.1,2448.0,0.7771]
[1728450469402,7.08461,2448.3,2447.7,0.7771]
[1728450469575,0.07030742,2448.1,2447.7,0.7771]
[1728450469786,7.08461,2448.3,2447.7,0.7771]
[1728450470023,0.07019304,2448.0,2447.7,0.7771]
[1728450470192,4.08465,2448.2,2447.7,0.7771]
[1728450470388,0.07010299,2447.9,2447.7,0.7771]
[1728450470598,4.08465,2448.2,2447.7,0.7771]
[1728450471190,0.07027422,2448.1,2447.7,0.7771]
[1728450471521,4.15509422,2448.1,2447.7,0.7771]
[1728450472026,0.07027422,2448.1,2447.7,0.7771]
[1728450472190,0.07027422,2448.1,2447.7,4.52829963]
[1728450473214,0.07027422,2448.1,2447.7,9.47515159]
[1728450473496,7.0845,2448.3,2447.7,5.38969159]
[1728450473681,0.06783171,2448.0,2447.7,5.38969159]
[1728450473880,7.0845,2448.3,2447.7,5.38969159]
[1728450474085,0.0680118,2448.2,2447.7,4.52829963]
[1728450475212,0.0680118,2448.2,2447.7,0.7771]
[1728450475898,0.0680118,2448.2,2447.7,4.86246]
[1728450476815,0.0680118,2448.2,2447.8,4.08526]
[1728450477125,7.08423,2448.5,2448.0,0.8183]
[1728450477926,0.06819627,2448.4,2448.0,0.8183]
[1728450479188,0.06819627,2448.4,2448.0,4.90326]
[1728450482088,0.06819627,2448.4,2447.9,3.75119963]
[1728450482287,0.06819627,2448.4,2448.0,0.7886]
[1728450483292,0.06819627,2448.4,2448.0,4.87354]
[1728450484396,0.06819627,2448.4,2448.0,0.7886]
[1728450488110,0.06819627,2448.4,2448.1,4.08479]
[1728450488297,3.0,2448.7,2448.2,0.8302]
[1728450488492,0.06611927,2448.6,2448.2,8.66598963]
[1728450488933,0.06611927,2448.6,2448.3,4.08444]
[1728450489234,0.06611927,2448.6,2448.5,0.8302]
[1728450489445,0.06611927,2448.6,2448.5,4.91433]
[1728450489612,4.08348,2448.9,2448.5,0.8302]
[1728450489798,0.06612653,2448.6,2448.5,0.8302]
[1728450489992,4.08348,2448.9,2448.5,0.8302]
[1728450490218,0.06618547,2448.6,2448.5,0.8302]
[1728450490495,0.06618547,2448.6,2448.5,1.321665]
[1728450490708,4.08348,2448.9,2448.5,1.321665]
[1728450490913,0.06618547,2448.6,2448.5,0.8302]
[1728450491213,4.08348,2448.9,2448.5,0.8302]
[1728450491476,4.08414,2448.5,2447.8,4.08523]
[1728450491615,4.08434,2448.4,2447.6,0.8096]
[1728450491939,4.08464,2448.2,2447.6,9.84530396]
[1728450492110,3.0,2448.3,2447.7,4.08543]
[1728450492314,0.06575861,2448.1,2447.7,5.44507036]
[1728450492543,3.0,2448.3,2447.7,5.44507036]
[1728450492713,0.06564202,2448.0,2447.7,5.44507036]
[1728450492902,3.0,2448.3,2447.8,4.08528]
[1728450493097,0.0658221,2448.2,2447.8,4.08528]
[1728450493295,7.08447,2448.3,2447.8,4.08528]
[1728450493607,0.0658221,2448.2,2447.8,4.08528]
[1728450493834,3.0,2448.3,2447.8,4.08528]
[1728450494050,0.0657242,2448.1,2447.8,4.08528]
[1728450494270,0.06581423,2448.2,2447.8,4.08528]
[1728450494541,3.0,2448.3,2447.8,1.4955894]
[1728450494721,3.0,2448.3,2447.9,0.7836]
[1728450494722,0.06344199,2448.1,2447.9,0.7836]
[1728450494912,3.0,2448.3,2447.9,0.7836]
[1728450495234,0.06335082,2448.0,2447.9,0.7836]
[1728450495438,3.0,2448.3,2447.9,0.7836]
[1728450495599,0.06335082,2448.0,2447.9,1.23707996]
[1728450495800,3.0,2448.5,2447.9,4.86862]
[1728450496108,3.0,2448.5,2448.0,3.75119963]
[1728450496522,3.0,2448.5,2448.1,0.7978]
[1728450496721,3.0,2448.6,2448.1,0.7978]
[1728450497514,3.0,2448.5,2448.1,0.7978]
[1728450497712,3.0,2448.5,2448.1,1.66118396]
[1728450500118,0.06369228,2448.4,2448.1,1.66118396]
[1728450500755,0.06369228,2448.4,2448.1,0.7978]
[1728450502959,4.08461,2448.3,2447.9,0.8164]
[1728450503161,4.08476,2448.2,2447.9,0.8164]
[1728450503362,4.14825578,2448.2,2447.7,0.7757]
[1728450503660,4.0848,2448.1,2447.7,0.7757]
[1728450504051,0.06333879,2448.0,2447.7,0.7757]
[1728450504542,4.08476,2448.2,2447.7,0.7757]
[1728450504742,0.06323104,2447.9,2447.7,0.7757]
[1728450505073,4.08476,2448.2,2447.7,0.7757]
[1728450505221,0.06314099,2447.8,2447.7,0.7757]
[1728450505555,0.06314099,2447.8,2447.5,0.8272]
[1728450505759,4.08476,2448.2,2447.5,0.8272]
[1728450506064,0.06301885,2447.7,2447.5,0.8272]
[1728450506246,4.08504,2448.0,2447.5,0.8272]
[1728450506449,0.06291993,2447.6,2447.5,0.8272]
[1728450506961,3.0,2447.9,2447.5,0.8272]
[1728450507170,0.06290996,2447.6,2447.5,0.8272]
[1728450507337,3.0,2447.9,2447.5,0.8272]
[1728450507538,0.06290996,2447.6,2447.5,0.8272]
[1728450507732,3.0,2447.9,2447.5,0.8272]
[1728450507931,0.06290996,2447.6,2447.5,0.8272]
[1728450508167,3.0,2447.9,2447.5,0.8272]
[1728450508458,0.06288011,2447.6,2447.5,0.8272]
[1728450508961,3.0,2447.9,2447.5,0.8272]
[1728450509266,0.06288011,2447.6,2447.5,0.8272]
[1728450509446,3.0,2447.9,2447.5,0.8272]
[1728450509650,0.06287787,2447.6,2447.5,0.8272]
[1728450509864,3.0,2447.9,2447.5,0.8272]
[1728450510370,0.06305801,2447.8,2447.5,0.8272]
[1728450512153,0.06305801,2447.8,2447.5,1.318512]
[1728450512355,3.0,2448.1,2447.6,4.08553]
[1728450512532,4.28430903,2448.2,2447.6,4.08551]
[1728450512533,0.06296574,2447.7,2447.6,4.08551]
[1728450512868,3.0,2448.3,2447.9,0.7952]
[1728450513230,0.06341489,2448.2,2447.9,0.7952]
[1728450513561,3.0,2448.3,2447.9,0.7952]
[1728450513562,0.06332485,2448.1,2447.9,0.7952]
[1728450513763,3.0,2448.3,2447.9,0.7952]
[1728450514070,0.06309404,2448.0,2447.9,0.7952]
[1728450514274,3.0,2448.3,2447.9,0.7952]
[1728450514431,0.0631282,2448.0,2447.9,4.88021]
[1728450514629,7.43,2448.4,2448.1,4.08478]
[1728450515237,0.06340385,2448.3,2448.1,4.08478]
[1728450515589,4.08383,2448.7,2448.1,4.08478]
[1728450515924,4.29116178,2448.7,2448.1,4.08478]
[1728450516134,0.0636949,2448.6,2448.1,4.08478]
[1728450516437,3.0636949,2448.6,2448.1,4.08478]
[1728450517896,0.0636949,2448.6,2448.1,4.08478]